[Event "106th British-ch Major 2019"]
[Site "Torquay"]
[Date "2019.07.30"]
[Round "4.30"]
[White "Paulden, Tim"]
[Black "Lovell, William Pm"]
[Result "1/2-1/2"]
[ECO "D02"]
[WhiteElo "1902"]
[BlackElo "1777"]
[Annotator "NA"]
[PlyCount "35"]
[EventDate "2019.07.27"]
[EventType "swiss"]
[EventCountry "GBR"]
[SourceTitle "playchess.com"]
[Source "ChessBase"]
[SourceQuality "1"]
[TimeControl "40/5400+30:1800+30"]

1. d4 {[%emt 0:00:00]} d5 {[%emt 0:00:00]} 2. Bf4 {[%emt 0:00:00]} Nf6 {[%emt 0:00:00]} 3. e3 {[%emt 0:00:00]} c5 {[%emt 0:00:00]} 4. c3 {[%emt 0:00:29]} Nc6 {[%emt 0:00:00]} 5. Nd2 {[%emt 0:01:22]} e6 {[%emt 0:00:05]} 6. Ngf3 {[%emt 0:04:42]} Bd6 {[%emt 0:00:20]} 7. Bg3 {[%emt 0:00:34]} O-O {[%emt 0:00:15]} 8. Bd3 {[%emt 0:02:27]} b6 {[%emt 0:00:07]} 9. Ne5 {[%emt 0:08:43]} Qc7 {[%emt 0:00:26]} 10. f4 {[%emt 0:03:17]} Ne7 {[%emt 0:02:39]} 11. O-O {[%emt 0:05:26]} Nf5 {[%emt 0:05:05]} 12. Bf2 {[%emt 0:02:45]} Be7 {[%emt 0:00:25]} 13. Ng4 {[%emt 0:09:43]} Nxg4 {[%emt 0:00:59]} 14. Qxg4 {[%emt 0:00:45]} Nd6 {[%emt 0:00:33]} 15. Qh3 {[%emt 0:03:41]} f5 {[%emt 0:00:55]} 16. Bh4 {[%emt 0:05:58]} Ne4 {[%emt 0:02:40]} 17. Bxe7 {[%emt 0:05:17]} Qxe7 {[%emt 0:00:13]} 18. Nf3 {[%emt 0:02:45]} 1/2-1/2

[Event "106th British-ch Major 2019"]
[Site "Torquay"]
[Date "2019.07.30"]
[Round "4.31"]
[White "Morgan, Jamie"]
[Black "Kirupakaran, Vishnu"]
[Result "0-1"]
[ECO "B40"]
[WhiteElo "1894"]
[BlackElo "1771"]
[Annotator "NA"]
[PlyCount "70"]
[EventDate "2019.07.27"]
[EventType "swiss"]
[EventCountry "GBR"]
[SourceTitle "playchess.com"]
[Source "ChessBase"]
[SourceQuality "1"]
[TimeControl "40/5400+30:1800+30"]

1. e4 {[%emt 0:00:00]} c5 {[%emt 0:00:00]} 2. Nc3 {[%emt 0:00:00]} a6 {[%emt 0:01:01]} 3. g3 {[%emt 0:00:32]} Nc6 {[%emt 0:00:15]} 4. Bg2 {[%emt 0:02:28]} g6 {[%emt 0:00:21]} 5. d3 {[%emt 0:01:00]} Bg7 {[%emt 0:01:40]} 6. Nf3 {[%emt 0:04:50]} e6 {[%emt 0:01:08]} 7. O-O {[%emt 0:05:15]} Nge7 {[%emt 0:00:17]} 8. Rb1 {[%emt 0:12:08]} O-O {[%emt 0:00:29]} 9. Bf4 {[%emt 0:07:19]} d5 {[%emt 0:01:12]} 10. Qc1 {[%emt 0:03:35]} b5 {[%emt 0:04:06]} 11. Bh6 {[%emt 0:01:51]} Bb7 {[%emt 0:03:17]} 12. Bxg7 {[%emt 0:02:37]} Kxg7 {[%emt 0:00:02]} 13. Qd2 {[%emt 0:02:57]} Qd7 {[%emt 0:11:16]} 14. Rbd1 {[%emt 0:08:17]} Rad8 {[%emt 0:07:13]} 15. Ne2 {[%emt 0:09:35]} e5 {[%emt 0:19:17]} 16. Qc3 {[%emt 0:03:33]} Qd6 {[%emt 0:00:25]} 17. Qe1 {[%emt 0:08:33]} d4 {[%emt 0:05:48]} 18. a3 {[%emt 0:03:29]} c4 {[%emt 0:11:58]} 19. Ra1 {[%emt 0:04:18]} Nc8 {[%emt 0:02:22]} 20. b3 {[%emt 0:01:23]} Nb6 {[%emt 0:01:19]} 21. Nd2 {[%emt 0:01:11]} cxd3 {[%emt 0:05:48]} 22. cxd3 {[%emt 0:00:10]} Rc8 {[%emt 0:01:57]} 23. Qb1 {[%emt 0:00:35]} Rc7 {[%emt 0:01:30]} 24. Rc1 {[%emt 0:01:03]} Rfc8 {[%emt 0:03:47]} 25. Bh3 {[%emt 0:00:11]} Nd7 {[%emt 0:00:08]} 26. Qb2 {[%emt 0:01:04]} Ne7 {[%emt 0:01:44]} 27. b4 {[%emt 0:03:00]} f5 {[%emt 0:01:05]} 28. Rxc7 {[%emt 0:00:41]} Rxc7 {[%emt 0:00:08]} 29. Rc1 {[%emt 0:01:34]} fxe4 {[%emt 0:01:05]} 30. Rxc7 {[%emt 0:00:27]} Qxc7 {[%emt 0:00:02]} 31. Nxe4 {[%emt 0:00:27]} Bxe4 {[%emt 0:01:40]} 32. dxe4 {[%emt 0:00:03]} Nf6 {[%emt 0:07:08]} 33. Bg2 {[%emt 0:00:43]} Qc4 {[%emt 0:01:01]} 34. Nc1 {[%emt 0:04:17]} Nc8 {[%emt 0:04:35]} 35. Nd3 {[%emt 0:00:55]} Qxd3 {[%emt 0:00:39]} 0-1

[Event "106th British-ch Major 2019"]
[Site "Torquay"]
[Date "2019.07.30"]
[Round "4.32"]
[White "Sheikh, Anum"]
[Black "Hilton, Tim"]
[Result "0-1"]
[ECO "C00"]
[WhiteElo "1693"]
[BlackElo "1892"]
[Annotator "NA"]
[PlyCount "62"]
[EventDate "2019.07.27"]
[EventType "swiss"]
[EventCountry "GBR"]
[SourceTitle "playchess.com"]
[Source "ChessBase"]
[SourceQuality "1"]
[TimeControl "40/5400+30:1800+30"]

1. e4 {[%emt 0:48:50]} e6 {[%emt 0:00:07]} 2. b3 {[%emt 0:00:04]} d5 {[%emt 0:00:30]} 3. Bb2 {[%emt 0:00:08]} Nf6 {[%emt 0:00:07]} 4. e5 {[%emt 0:00:11]} Nfd7 {[%emt 0:00:05]} 5. Qg4 {[%emt 0:00:08]} c5 {[%emt 0:01:00]} 6. f4 {[%emt 0:00:13]} Nc6 {[%emt 0:00:28]} 7. Nf3 {[%emt 0:00:17]} g6 {[%emt 0:02:16]} 8. Nc3 {[%emt 0:00:19]} a6 {[%emt 0:00:54]} 9. Be2 {[%emt 0:00:33]} Bg7 {[%emt 0:00:24]} 10. O-O-O {[%emt 0:00:25]} b5 {[%emt 0:03:56]} 11. h4 {[%emt 0:00:14]} h5 {[%emt 0:01:13]} 12. Qh3 {[%emt 0:00:05]} c4 {[%emt 0:12:47]} 13. g4 {[%emt 0:02:31]} Nc5 {[%emt 0:07:15]} 14. d4 {[%emt 0:10:19]} cxd3 {[%emt 0:01:02]} 15. cxd3 {[%emt 0:00:06]} b4 {[%emt 0:03:28]} 16. Nb1 {[%emt 0:00:59]} Qa5 {[%emt 0:03:41]} 17. gxh5 {[%emt 0:10:41]} Qxa2 {[%emt 0:03:45]} 18. Nbd2 {[%emt 0:03:37]} Na5 {[%emt 0:02:48]} 19. Nd4 {[%emt 0:00:24]} Bd7 {[%emt 0:01:21]} 20. Kc2 {[%emt 0:17:42]} Rc8 {[%emt 0:00:39]} 21. Nc4 {[%emt 0:00:29]} Ncxb3 {[%emt 0:01:25]} 22. Nxb3 {[%emt 0:03:04]} Qxb3+ {[%emt 0:00:09]} 23. Kb1 {[%emt 0:00:41]} dxc4 {[%emt 0:00:19]} 24. dxc4 {[%emt 0:00:27]} Qxh3 {[%emt 0:00:18]} 25. Rxh3 {[%emt 0:00:21]} Nxc4 {[%emt 0:01:25]} 26. hxg6 {[%emt 0:01:18]} fxg6 {[%emt 0:01:16]} 27. Bd3 {[%emt 0:00:27]} Nxb2 {[%emt 0:01:21]} 28. Bxg6+ {[%emt 0:00:08]} Ke7 {[%emt 0:00:06]} 29. Kxb2 {[%emt 0:00:08]} Bb5 {[%emt 0:01:41]} 30. Rd2 {[%emt 0:01:28]} Bh6 {[%emt 0:01:03]} 31. Rd4 {[%emt 0:00:30]} Rc4 {[%emt 0:00:57]} 0-1

[Event "106th British-ch Major 2019"]
[Site "Torquay"]
[Date "2019.07.30"]
[Round "4.33"]
[White "Miller, George"]
[Black "Rushbrooke, Tibo"]
[Result "0-1"]
[ECO "C26"]
[WhiteElo "1891"]
[BlackElo "1700"]
[Annotator "NA"]
[PlyCount "50"]
[EventDate "2019.07.27"]
[EventType "swiss"]
[EventCountry "GBR"]
[SourceTitle "playchess.com"]
[Source "ChessBase"]
[SourceQuality "1"]
[TimeControl "40/5400+30:1800+30"]

1. Nc3 {[%emt 0:00:00]} e5 {[%emt 0:02:55]} 2. e4 {[%emt 0:00:00]} Nf6 {[%emt 0:00:07]} 3. g3 {[%emt 0:01:31]} Bc5 {[%emt 0:01:26]} 4. Nf3 {[%emt 0:04:14]} d6 {[%emt 0:00:29]} 5. d4 {[%emt 0:01:13]} exd4 {[%emt 0:04:23]} 6. Nxd4 {[%emt 0:00:58]} O-O {[%emt 0:03:35]} 7. Bg2 {[%emt 0:00:09]} Bg4 {[%emt 0:04:56]} 8. f3 {[%emt 0:04:46]} Bh5 {[%emt 0:01:44]} 9. Be3 {[%emt 0:09:59]} Re8 {[%emt 0:04:23]} 10. Nf5 {[%emt 0:02:31]} Bxe3 {[%emt 0:08:13]} 11. Nxe3 {[%emt 0:00:11]} Nxe4 {[%emt 0:01:27]} 12. Nxe4 {[%emt 0:05:01]} Rxe4 {[%emt 0:00:09]} 13. Qd3 {[%emt 0:00:18]} Re8 {[%emt 0:00:14]} 14. O-O-O {[%emt 0:00:36]} Nc6 {[%emt 0:01:26]} 15. Kb1 {[%emt 0:07:04]} Bg6 {[%emt 0:02:59]} 16. Qb3 {[%emt 0:00:18]} Qd7 {[%emt 0:02:33]} 17. f4 {[%emt 0:03:26]} Rxe3 {[%emt 0:14:12]} 18. Qxe3 {[%emt 0:00:16]} Nb4 {[%emt 0:00:13]} 19. Rc1 {[%emt 0:06:03]} Re8 {[%emt 0:00:50]} 20. Qxa7 {[%emt 0:00:13]} Nxc2 {[%emt 0:13:58]} 21. Rxc2 {[%emt 0:02:13]} Qf5 {[%emt 0:00:13]} 22. Qxb7 {[%emt 0:12:24]} Qxc2+ {[%emt 0:02:06]} 23. Ka1 {[%emt 0:00:30]} h6 {[%emt 0:00:11]} 24. Qc6 {[%emt 0:00:16]} Qe2 {[%emt 0:05:34]} 25. a4 {[%emt 0:01:11]} Rb8 {[%emt 0:01:48]} 0-1

[Event "106th British-ch Major 2019"]
[Site "Torquay"]
[Date "2019.07.30"]
[Round "4.34"]
[White "Renshaw, Lucas"]
[Black "Whitehead, Mark A"]
[Result "1/2-1/2"]
[ECO "B44"]
[WhiteElo "1596"]
[BlackElo "1887"]
[Annotator "NA"]
[PlyCount "60"]
[EventDate "2019.07.27"]
[EventType "swiss"]
[EventCountry "GBR"]
[SourceTitle "playchess.com"]
[Source "ChessBase"]
[SourceQuality "1"]
[TimeControl "40/5400+30:1800+30"]

1. e4 {[%emt 0:00:00]} c5 {[%emt 0:07:03]} 2. Nf3 {[%emt 0:00:00]} e6 {[%emt 0:00:20]} 3. d4 {[%emt 0:00:00]} cxd4 {[%emt 0:02:23]} 4. Nxd4 {[%emt 0:00:00]} Nc6 {[%emt 0:01:48]} 5. c4 {[%emt 0:03:18]} Nf6 {[%emt 0:00:58]} 6. Nc3 {[%emt 0:01:01]} Bb4 {[%emt 0:02:25]} 7. Nxc6 {[%emt 0:10:15]} bxc6 {[%emt 0:01:44]} 8. Bd3 {[%emt 0:04:55]} e5 {[%emt 0:02:25]} 9. O-O {[%emt 0:01:14]} O-O {[%emt 0:03:51]} 10. f4 {[%emt 0:02:45]} d6 {[%emt 0:00:40]} 11. Qf3 {[%emt 0:05:48]} Bc5+ {[%emt 0:01:19]} 12. Be3 {[%emt 0:14:44]} Bxe3+ {[%emt 0:01:49]} 13. Qxe3 {[%emt 0:00:03]} Ng4 {[%emt 0:00:32]} 14. Qg3 {[%emt 0:03:15]} Qb6+ {[%emt 0:01:13]} 15. Kh1 {[%emt 0:00:45]} Qxb2 {[%emt 0:00:51]} 16. Ne2 {[%emt 0:06:31]} exf4 {[%emt 0:01:40]} 17. Qxf4 {[%emt 0:03:42]} Qe5 {[%emt 0:00:29]} 18. Rac1 {[%emt 0:10:17]} Qxf4 {[%emt 0:06:16]} 19. Nxf4 {[%emt 0:00:13]} Ne5 {[%emt 0:00:09]} 20. Be2 {[%emt 0:02:40]} c5 {[%emt 0:04:47]} 21. Rcd1 {[%emt 0:02:47]} Ba6 {[%emt 0:04:15]} 22. Rxd6 {[%emt 0:02:13]} Bxc4 {[%emt 0:00:11]} 23. Bxc4 {[%emt 0:03:18]} Nxc4 {[%emt 0:00:17]} 24. Rd7 {[%emt 0:01:45]} Nb6 {[%emt 0:11:56]} 25. Rb7 {[%emt 0:02:50]} Rfb8 {[%emt 0:00:37]} 26. Re7 {[%emt 0:03:22]} Re8 {[%emt 0:00:29]} 27. Rc7 {[%emt 0:02:14]} Rec8 {[%emt 0:03:16]} 28. Re7 {[%emt 0:02:08]} Kf8 {[%emt 0:00:42]} 29. Nd5 {[%emt 0:00:02]} Kg8 {[%emt 0:00:06]} 30. Nf4 {[%emt 0:00:04]} Re8 {[%emt 0:00:21]} 1/2-1/2

[Event "106th British-ch Major 2019"]
[Site "Torquay"]
[Date "2019.07.30"]
[Round "4.35"]
[White "Roy, Ali"]
[Black "Gray, Edward"]
[Result "1/2-1/2"]
[ECO "A05"]
[WhiteElo "1871"]
[BlackElo "1757"]
[Annotator "NA"]
[PlyCount "64"]
[EventDate "2019.07.27"]
[EventType "swiss"]
[EventCountry "GBR"]
[SourceTitle "playchess.com"]
[Source "ChessBase"]
[SourceQuality "1"]
[TimeControl "40/5400+30:1800+30"]

1. Nf3 {[%emt 0:00:00]} Nf6 {[%emt 0:00:00]} 2. g3 {[%emt 0:00:00]} c5 {[%emt 0:00:00]} 3. Bg2 {[%emt 0:00:00]} g6 {[%emt 0:00:00]} 4. O-O {[%emt 0:00:06]} Bg7 {[%emt 0:00:02]} 5. d3 {[%emt 0:00:21]} O-O {[%emt 0:00:17]} 6. e4 {[%emt 0:02:21]} d6 {[%emt 0:00:12]} 7. Nbd2 {[%emt 0:01:44]} Nc6 {[%emt 0:00:20]} 8. Re1 {[%emt 0:04:16]} Bd7 {[%emt 0:02:47]} 9. c3 {[%emt 0:01:09]} Qc8 {[%emt 0:01:31]} 10. Qe2 {[%emt 0:18:15]} Bh3 {[%emt 0:02:50]} 11. Nc4 {[%emt 0:01:17]} Bxg2 {[%emt 0:02:12]} 12. Kxg2 {[%emt 0:00:04]} Ng4 {[%emt 0:00:17]} 13. Bf4 {[%emt 0:11:03]} b5 {[%emt 0:02:03]} 14. Nxd6 {[%emt 0:12:59]} exd6 {[%emt 0:00:42]} 15. Bxd6 {[%emt 0:00:04]} Rd8 {[%emt 0:00:41]} 16. Bxc5 {[%emt 0:00:30]} Bf8 {[%emt 0:00:30]} 17. Bxf8 {[%emt 0:00:30]} Kxf8 {[%emt 0:00:30]} 18. d4 {[%emt 0:00:35]} a6 {[%emt 0:02:44]} 19. e5 {[%emt 0:00:30]} Ra7 {[%emt 0:00:30]} 20. h3 {[%emt 0:00:30]} Nh6 {[%emt 0:00:30]} 21. g4 {[%emt 0:00:30]} Kg7 {[%emt 0:00:30]} 22. Rad1 {[%emt 0:00:30]} Ne7 {[%emt 0:00:30]} 23. Ng5 {[%emt 0:00:30]} Nd5 {[%emt 0:00:30]} 24. Kg3 {[%emt 0:00:30]} Re7 {[%emt 0:00:30]} 25. f4 {[%emt 0:00:30]} Rde8 {[%emt 0:00:30]} 26. Ne4 {[%emt 0:00:30]} Re6 {[%emt 0:00:30]} 27. Nc5 {[%emt 0:00:30]} Rb6 {[%emt 0:00:30]} 28. a4 {[%emt 0:00:30]} Qc7 {[%emt 0:00:30]} 29. Rc1 {[%emt 0:00:30]} f6 {[%emt 0:00:30]} 30. Qe4 {[%emt 0:00:30]} Qc6 {[%emt 0:00:30]} 31. axb5 {[%emt 0:00:30]} axb5 {[%emt 0:00:30]} 32. b3 {[%emt 0:00:30]} fxe5 {[%emt 0:00:30]} 1/2-1/2

[Event "106th British-ch Major 2019"]
[Site "Torquay"]
[Date "2019.07.31"]
[Round "5.2"]
[White "Ashworth, Michael J"]
[Black "Taylor, Adam A"]
[Result "1/2-1/2"]
[ECO "E32"]
[WhiteElo "1957"]
[BlackElo "2168"]
[Annotator "ChessBase"]
[PlyCount "104"]
[EventDate "2019.07.27"]
[EventType "swiss"]
[EventCountry "GBR"]
[SourceTitle "playchess.com"]
[Source "ChessBase"]
[SourceQuality "1"]
[TimeControl "40/5400+30:1800+30"]

1. d4 {[%emt 0:00:00]} Nf6 {[%emt 0:00:00]} 2. c4 {[%emt 0:00:03]} e6 {[%emt 0:00:00]} 3. Nc3 {[%emt 0:00:27]} Bb4 {[%emt 0:00:01]} 4. Qc2 {[%emt 0:00:15]} O-O {[%emt 0:00:21]} 5. a3 {[%emt 0:00:28]} Bxc3+ {[%emt 0:00:48]} 6. Qxc3 {[%emt 0:00:14]} b6 {[%emt 0:02:09]} 7. Bg5 {[%emt 0:01:29]} Bb7 {[%emt 0:00:55]} 8. f3 {[%emt 0:04:01]} h6 {[%emt 0:00:30]} 9. Bh4 {[%emt 0:00:30]} d5 {[%emt 0:09:11]} 10. e3 {[%emt 0:03:38]} Nbd7 {[%emt 0:00:52]} 11. cxd5 {[%emt 0:02:03]} exd5 {[%emt 0:00:37]} 12. Bd3 {[%emt 0:00:28]} Re8 {[%emt 0:00:25]} 13. Ne2 {[%emt 0:02:08]} Rc8 {[%emt 0:06:55]} 14. O-O {[%emt 0:02:41]} Qe7 {[%emt 0:19:55]} 15. Bf2 {[%emt 0:01:32]} c5 {[%emt 0:01:53]} 16. Qd2 {[%emt 0:07:56]} Nf8 {[%emt 0:14:42]} 17. Rfe1 {[%emt 0:25:18]} Ne6 {[%emt 0:03:11]} 18. Nc3 {[%emt 0:06:06]} Qd7 {[%emt 0:06:39]} 19. Bf5 {[%emt 0:06:49]} Rcd8 {[%emt 0:12:36]} 20. Rad1 {[%emt 0:07:52]} Bc6 {[%emt 0:08:33]} 21. dxc5 {[%emt 0:11:15]} bxc5 {[%emt 0:00:28]} 22. b4 {[%emt 0:00:45]} Qe7 {[%emt 0:07:58]} 23. bxc5 {[%emt 0:10:09]} Nxc5 {[%emt 0:00:28]} 24. Qc2 {[%emt 0:00:37]} Ba8 {[%emt 0:00:45]} 25. Rc1 {[%emt 0:01:09]} Ne6 {[%emt 0:01:50]} 26. a4 {[%emt 0:02:17]} Rb8 {[%emt 0:00:21]} 27. Red1 {[%emt 0:01:02]} Rec8 {[%emt 0:00:23]} 28. Qa2 {[%emt 0:01:06]} Qb4 {[%emt 0:00:22]} 29. Nb5 {[%emt 0:00:39]} a6 {[%emt 0:00:15]} 30. Rxc8+ {[%emt 0:00:35]} Rxc8 {[%emt 0:00:04]} 31. Nd4 {[%emt 0:00:09]} Re8 {[%emt 0:00:24]} 32. Qc2 {[%emt 0:01:12]} Nc5 {[%emt 0:01:42]} 33. Ra1 {[%emt 0:00:52]} Nfd7 {[%emt 0:00:31]} 34. Be1 {[%emt 0:00:30]} Qb6 {[%emt 0:00:02]} 35. a5 {[%emt 0:00:19]} Qf6 {[%emt 0:00:37]} 36. Ra3 {[%emt 0:00:48]} Ne6 {[%emt 0:00:30]} 37. Nxe6 {[%emt 0:00:22]} fxe6 {[%emt 0:00:03]} 38. Bd3 {[%emt 0:00:09]} e5 {[%emt 0:00:54]} 39. Qc7 {[%emt 0:00:38]} Nf8 {[%emt 0:00:09]} 40. Qa7 {[%emt 0:00:53]} e4 {[%emt 0:01:17]} 41. fxe4 {[%emt 0:04:54]} Qb2 {[%emt 0:08:21]} 42. Bc3 {[%emt 0:13:51]} Qc1+ {[%emt 0:00:07]} 43. Kf2 {[%emt 0:00:12]} Ne6 {[%emt 0:00:13]} 44. Rb3 {[%emt 0:03:11]} Rf8+ {[%emt 0:14:50]} 45. Kg3 {[%emt 0:00:17]} d4 {[%emt 0:00:16]} 46. Bxd4 {[%emt 0:04:55]} Qe1+ {[%emt 0:02:54]} 47. Kh3 {[%emt 0:00:16]} Qd1 {[%emt 0:03:43]} 48. Bc4 {[%emt 0:01:56]} Qh5+ {[%emt 0:02:04]} 49. Kg3 {[%emt 0:00:04]} Qg5+ {[%emt 0:01:16]} 50. Kh3 {[%emt 0:00:06]} Qh5+ {[%emt 0:00:03]} 51. Kg3 {[%emt 0:00:04]} Qg6+ {[%emt 0:00:09]} 52. Kh3 {[%emt 0:00:44]} Qh5+ {[%emt 0:00:25]} 1/2-1/2

[Event "106th British-ch Major 2019"]
[Site "Torquay"]
[Date "2019.07.31"]
[Round "5.3"]
[White "Rogacewicz, Mikolaj"]
[Black "Graham, David B"]
[Result "0-1"]
[ECO "E80"]
[WhiteElo "1925"]
[BlackElo "2162"]
[Annotator "ChessBase"]
[PlyCount "118"]
[EventDate "2019.07.27"]
[EventType "swiss"]
[EventCountry "GBR"]
[SourceTitle "playchess.com"]
[Source "ChessBase"]
[SourceQuality "1"]
[TimeControl "40/5400+30:1800+30"]

1. d4 {[%emt 0:00:00]} Nf6 {[%emt 0:00:00]} 2. c4 {[%emt 0:00:00]} g6 {[%emt 0:00:00]} 3. Nc3 {[%emt 0:00:00]} Bg7 {[%emt 0:00:00]} 4. e4 {[%emt 0:00:00]} d6 {[%emt 0:00:00]} 5. f3 {[%emt 0:00:00]} c6 {[%emt 0:00:00]} 6. Be3 {[%emt 0:00:44]} a6 {[%emt 0:00:07]} 7. Qd2 {[%emt 0:06:20]} b5 {[%emt 0:01:01]} 8. Nge2 {[%emt 0:06:05]} Nbd7 {[%emt 0:04:43]} 9. g4 {[%emt 0:09:40]} Nb6 {[%emt 0:04:04]} 10. Ng3 {[%emt 0:04:08]} Nxc4 {[%emt 0:01:04]} 11. Bxc4 {[%emt 0:00:44]} bxc4 {[%emt 0:00:04]} 12. Rd1 {[%emt 0:06:43]} Rb8 {[%emt 0:12:08]} 13. g5 {[%emt 0:09:21]} Nh5 {[%emt 0:02:28]} 14. Nxh5 {[%emt 0:01:18]} gxh5 {[%emt 0:00:05]} 15. O-O {[%emt 0:12:34]} d5 {[%emt 0:10:36]} 16. Qf2 {[%emt 0:38:35]} h6 {[%emt 0:17:53]} 17. g6 {[%emt 0:00:00]} Bh3 {[%emt 0:11:46]} 18. Rfe1 {[%emt 0:00:00]} Qd6 {[%emt 0:07:11]} 19. Kh1 {[%emt 0:00:00]} fxg6 {[%emt 0:01:19]} 20. Qh4 {[%emt 0:00:00]} Qd7 {[%emt 0:02:53]} 21. exd5 {[%emt 0:00:00]} cxd5 {[%emt 0:04:38]} 22. Bf4 {[%emt 0:00:00]} Rb7 {[%emt 0:03:08]} 23. Nxd5 {[%emt 0:04:07]} Qxd5 {[%emt 0:00:48]} 24. Qxh3 {[%emt 0:00:10]} O-O {[%emt 0:01:26]} 25. Re4 {[%emt 0:00:19]} Rxb2 {[%emt 0:04:55]} 26. Rg1 {[%emt 0:00:21]} Rb6 {[%emt 0:02:23]} 27. Be5 {[%emt 0:01:28]} Bxe5 {[%emt 0:01:37]} 28. Rxe5 {[%emt 0:00:17]} Qxf3+ {[%emt 0:00:43]} 29. Qxf3 {[%emt 0:00:06]} Rxf3 {[%emt 0:00:03]} 30. Rxe7 {[%emt 0:00:32]} Rf7 {[%emt 0:02:49]} 31. Re5 {[%emt 0:00:59]} Kh7 {[%emt 0:00:53]} 32. Rc5 {[%emt 0:00:45]} Rb2 {[%emt 0:02:07]} 33. Rxc4 {[%emt 0:00:36]} Rxa2 {[%emt 0:00:04]} 34. Rgc1 {[%emt 0:00:34]} Rd2 {[%emt 0:00:26]} 35. Ra4 {[%emt 0:00:15]} h4 {[%emt 0:00:53]} 36. Rxa6 {[%emt 0:00:37]} Rxd4 {[%emt 0:00:07]} 37. Ra2 {[%emt 0:00:07]} Rdf4 {[%emt 0:00:32]} 38. Kg1 {[%emt 0:00:17]} g5 {[%emt 0:00:17]} 39. Re2 {[%emt 0:00:16]} Kg6 {[%emt 0:00:18]} 40. Rc3 {[%emt 0:00:30]} Rf1+ {[%emt 0:00:22]} 41. Kg2 {[%emt 0:30:06]} Ra1 {[%emt 0:33:45]} 42. Rc6+ {[%emt 0:00:00]} Rf6 {[%emt 0:00:00]} 43. Rc3 {[%emt 0:00:00]} Rfa6 {[%emt 0:00:00]} 44. Rce3 {[%emt 0:00:00]} R1a2 {[%emt 0:00:00]} 45. Re8 {[%emt 0:00:00]} Rxe2+ {[%emt 0:00:00]} 46. Rxe2 {[%emt 0:00:00]} g4 {[%emt 0:00:00]} 47. h3 {[%emt 0:00:00]} h5 {[%emt 0:00:00]} 48. Re3 {[%emt 0:00:00]} Ra2+ {[%emt 0:00:59]} 49. Kg1 {[%emt 0:00:50]} Kf5 {[%emt 0:00:00]} 50. Rb3 {[%emt 0:00:00]} Ra5 {[%emt 0:00:00]} 51. Rc3 {[%emt 0:00:00]} Rd5 {[%emt 0:00:00]} 52. Kf2 {[%emt 0:03:02]} Rd2+ {[%emt 0:00:00]} 53. Kg1 {[%emt 0:00:39]} Ke4 {[%emt 0:00:00]} 54. Rc4+ {[%emt 0:01:51]} Rd4 {[%emt 0:00:00]} 55. Rc2 {[%emt 0:00:29]} Rd3 {[%emt 0:00:00]} 56. Re2+ {[%emt 0:00:59]} Re3 {[%emt 0:00:00]} 57. Rh2 {[%emt 0:00:15]} Re1+ {[%emt 0:00:00]} 58. Kg2 {[%emt 0:00:48]} Re2+ {[%emt 0:00:00]} 59. Kg1 {[%emt 0:00:05]} Rxh2 {[%emt 0:00:00]} 0-1

[Event "106th British-ch Major 2019"]
[Site "Torquay"]
[Date "2019.07.31"]
[Round "5.4"]
[White "Ward, Andy"]
[Black "Pollack, Oscar"]
[Result "0-1"]
[ECO "A45"]
[WhiteElo "1822"]
[BlackElo "2088"]
[Annotator "NA"]
[PlyCount "76"]
[EventDate "2019.07.27"]
[EventType "swiss"]
[EventCountry "GBR"]
[SourceTitle "playchess.com"]
[Source "ChessBase"]
[SourceQuality "1"]
[TimeControl "40/5400+30:1800+30"]

1. d4 {[%emt 0:00:00]} Nf6 {[%emt 0:00:00]} 2. Bg5 {[%emt 0:00:00]} e6 {[%emt 0:00:02]} 3. e3 {[%emt 0:00:00]} h6 {[%emt 0:00:45]} 4. Bf4 {[%emt 0:00:15]} b6 {[%emt 0:01:01]} 5. Nf3 {[%emt 0:00:52]} Bb7 {[%emt 0:00:25]} 6. Bd3 {[%emt 0:00:15]} Be7 {[%emt 0:01:44]} 7. O-O {[%emt 0:01:33]} O-O {[%emt 0:01:10]} 8. c3 {[%emt 0:08:31]} Nh5 {[%emt 0:04:59]} 9. Bg3 {[%emt 0:02:50]} d6 {[%emt 0:02:13]} 10. Nbd2 {[%emt 0:01:01]} Nd7 {[%emt 0:02:47]} 11. Be4 {[%emt 0:07:55]} d5 {[%emt 0:04:41]} 12. Bd3 {[%emt 0:00:15]} c5 {[%emt 0:01:48]} 13. Qe2 {[%emt 0:08:33]} Nxg3 {[%emt 0:05:29]} 14. hxg3 {[%emt 0:00:09]} Qc7 {[%emt 0:01:32]} 15. e4 {[%emt 0:04:58]} cxd4 {[%emt 0:02:13]} 16. Nxd4 {[%emt 0:00:27]} Nc5 {[%emt 0:01:38]} 17. exd5 {[%emt 0:07:16]} Nxd3 {[%emt 0:02:37]} 18. Qxd3 {[%emt 0:00:02]} Bxd5 {[%emt 0:00:27]} 19. Rfd1 {[%emt 0:06:25]} Rfd8 {[%emt 0:03:37]} 20. Qe2 {[%emt 0:00:57]} Rd7 {[%emt 0:04:11]} 21. N2f3 {[%emt 0:00:18]} Bf6 {[%emt 0:00:25]} 22. Nc2 {[%emt 0:02:10]} Rad8 {[%emt 0:02:29]} 23. Ne3 {[%emt 0:01:16]} Bb7 {[%emt 0:02:11]} 24. Ng4 {[%emt 0:00:58]} Rxd1+ {[%emt 0:01:31]} 25. Rxd1 {[%emt 0:00:10]} Rxd1+ {[%emt 0:00:06]} 26. Qxd1 {[%emt 0:00:02]} Be7 {[%emt 0:00:14]} 27. Nd4 {[%emt 0:02:39]} Qc4 {[%emt 0:04:20]} 28. a3 {[%emt 0:03:40]} Qd5 {[%emt 0:04:14]} 29. Ne3 {[%emt 0:00:12]} Qe4 {[%emt 0:00:49]} 30. Qa4 {[%emt 0:02:01]} Bg5 {[%emt 0:05:29]} 31. Qe8+ {[%emt 0:00:20]} Kh7 {[%emt 0:00:13]} 32. Ndc2 {[%emt 0:00:10]} f5 {[%emt 0:03:11]} 33. f4 {[%emt 0:08:44]} Bf6 {[%emt 0:00:14]} 34. Qd7 {[%emt 0:00:06]} a6 {[%emt 0:02:13]} 35. Kf2 {[%emt 0:01:02]} b5 {[%emt 0:02:00]} 36. Nd4 {[%emt 0:00:59]} Bd5 {[%emt 0:03:09]} 37. Ndxf5 {[%emt 0:01:31]} Bc6 {[%emt 0:00:14]} 38. Nd6 {[%emt 0:01:35]} Qxe3+ {[%emt 0:00:57]} 0-1

[Event "106th British-ch Major 2019"]
[Site "Torquay"]
[Date "2019.07.31"]
[Round "5.5"]
[White "Hagesaether, Arne"]
[Black "Rushbrooke, Remy"]
[Result "1-0"]
[ECO "A88"]
[WhiteElo "2046"]
[BlackElo "1963"]
[Annotator "NA"]
[PlyCount "43"]
[EventDate "2019.07.27"]
[EventType "swiss"]
[EventCountry "GBR"]
[SourceTitle "playchess.com"]
[Source "ChessBase"]
[SourceQuality "1"]
[TimeControl "40/5400+30:1800+30"]

1. d4 {[%emt 0:03:29]} f5 {[%emt 0:00:00]} 2. Nf3 {[%emt 0:01:14]} Nf6 {[%emt 0:00:00]} 3. g3 {[%emt 0:00:23]} g6 {[%emt 0:00:00]} 4. Bg2 {[%emt 0:00:24]} Bg7 {[%emt 0:00:02]} 5. O-O {[%emt 0:00:32]} O-O {[%emt 0:00:03]} 6. c4 {[%emt 0:00:40]} d6 {[%emt 0:00:04]} 7. Nc3 {[%emt 0:01:16]} c6 {[%emt 0:00:09]} 8. Qc2 {[%emt 0:02:26]} a5 {[%emt 0:02:15]} 9. Rd1 {[%emt 0:03:20]} Na6 {[%emt 0:01:07]} 10. a3 {[%emt 0:02:41]} Qe8 {[%emt 0:01:10]} 11. b3 {[%emt 0:03:15]} h6 {[%emt 0:02:25]} 12. Bb2 {[%emt 0:00:50]} g5 {[%emt 0:04:52]} 13. Na4 {[%emt 0:03:21]} Rb8 {[%emt 0:14:01]} 14. Nb6 {[%emt 0:00:40]} Be6 {[%emt 0:01:22]} 15. d5 {[%emt 0:07:06]} Bf7 {[%emt 0:00:48]} 16. Nd4 {[%emt 0:02:47]} Ng4 {[%emt 0:08:20]} 17. Nxf5 {[%emt 0:04:10]} Bg6 {[%emt 0:02:09]} 18. Nxe7+ {[%emt 0:07:21]} Qxe7 {[%emt 0:00:48]} 19. Qxg6 {[%emt 0:00:10]} Rxf2 {[%emt 0:02:28]} 20. Qxg7+ {[%emt 0:13:08]} Qxg7 {[%emt 0:00:06]} 21. Bxg7 {[%emt 0:00:07]} Kxg7 {[%emt 0:01:11]} 22. Bf3 {[%emt 0:00:13]} 1-0